Cogmind - Beta 13 @@@ ROGUE MODE // 2024.04.11 @ 18:10:32 Player: pro100_Player Result: Destroyed by G-47 Trooper with Particle Gun Performance ------------- Evolutions (2) 1000 Regions Visited (4) 800 Robots Destroyed (22) 110 Value Destroyed (579) 579 Prototype IDs (2) 40 Alien Tech Used (0) 0 Bonus (80) 80 TOTAL SCORE: 2609 Bonus ------- Follower Combat Kills 80 Cogmind --------- Core Integrity 0/550 Matter 162/300 Energy 100/100 System Corruption 1% Temperature Cool (9) Movement Core (350) Ox6 Location -8/Materials Parts ------- > --- POWER (1) -------- (None) > --- PROPULSION (4) --- (None) > --- UTILITY (4) ------ Large Storage Unit > --- WEAPON (2) ------- (None) > --- INVENTORY (15) --- Improved Ion Engine Improved Heat Sink Improved Heat Sink Small Storage Unit High-capacity Storage Unit Improved Terrain Scanner Seismic Detector Targeting Computer Improved Targeting Computer Hardlight Generator Hacking Suite Hacking Suite Peak State ------------ > --- POWER ------------ Light Angular Momentum Engine > --- PROPULSION ------- Armored Wheel Armored Wheel Armored Wheel Armored Wheel > --- UTILITY ---------- Large Storage Unit Improved Sensor Array Medium Armor Plating Medium Armor Plating > --- WEAPON ----------- Heavy EM Shotgun Heavy Ion Cannon > --- INVENTORY -------- Improved Ion Engine Armored Wheel Improved Heat Sink Improved Heat Sink Small Storage Unit High-capacity Storage Unit Improved Terrain Scanner Seismic Detector Targeting Computer Improved Targeting Computer Medium Armor Plating Hardlight Generator Hacking Suite Hacking Suite Rocket Launcher [Rating: 32] Favorites ----------- Power Light Angular Momentum Engine Engine Light Angular Momentum Engine Propulsion Carbon-fiber Leg Leg Carbon-fiber Leg Wheel Armored Wheel Utility Seismic Detector Device Seismic Detector Storage Small Storage Unit Protection Medium Armor Plating Weapon Assault Rifle Energy Gun Heavy EM Shotgun Energy Cannon Heavy Ion Cannon Ballistic Gun Assault Rifle Launcher Rocket Launcher Build | -11 -10 -10 -9 -8 ------- Run | Yrd Mat Min Mat Mat Slots Evolved 4 | . . . 2 2 Power . | . . . . . Propulsion 2 | . . . 2 . Utility 2 | . . . . 2 Weapon . | . . . . . Parts Attached 31 | 7 2 3 9 10 Power 2 | 1 . 1 . . Engine 2 | 1 . 1 . . Core . | . . . . . Reactor . | . . . . . Propulsion 11 | 2 . 2 6 1 Treads . | . . . . . Leg 5 | 2 . 2 1 . Wheel 6 | . . . 5 1 Hover . | . . . . . Flight . | . . . . . Utility 9 | 2 . . 2 5 Device 2 | 1 . . . 1 Storage 3 | 1 . . 2 . Processor . | . . . . . Hackware . | . . . . . Protection 4 | . . . . 4 Artifact . | . . . . . Weapon 9 | 2 2 . 1 4 Energy Gun 2 | . . . 1 1 Energy Cannon 1 | . . . . 1 Ballistic Gun 5 | 2 2 . . 1 Ballistic Cannon . | . . . . . Launcher 1 | . . . . 1 Special Weapon . | . . . . . Impact Weapon . | . . . . . Slashing Weapon . | . . . . . Piercing Weapon . | . . . . . Special Melee Weapon . | . . . . . Unidentified Prototypes 2 | . . . 1 1 Parts Lost 15 | . . . 1 14 Power 1 | . . . . 1 Propulsion 4 | . . . . 4 Utility 4 | . . . . 4 Weapon 6 | . . . 1 5 Highest Loss Streak 8 | . . . 1 8 To Critical Strikes . | . . . . . Average Slot Usage (%) 94 | . 100 100 96 68 Engine 12 | . 14 14 11 4 Leg 19 | . 28 28 5 . Wheel 9 | . . . 35 23 Device 12 | . 14 14 11 7 Storage 12 | . 14 14 11 9 Protection 1 | . . . . 10 Energy Gun 1 | . . . 6 5 Ballistic Gun 22 | . 28 28 14 4 Naked Turns . | . . . . . Heaviest Build 56 | 13 15 19 56 56 Greatest Support 48 | 20 20 30 48 48 Greatest Overweight (x) 6 | . . . 1 6 Average Overweight (x) . | . . . . . Largest Inventory Capacity 20 | 8 8 8 20 15 Average Capacity 9 | 7 8 8 13 15 Most Carried 15 | 7 8 8 13 15 Average Carried 8 | 2 7 8 9 13 Final Capacity 15 | 8 8 8 15 15 Final Carried 13 | 7 8 8 13 12 Class Distribution -------------------- 50% | Mutant 49% | Scavenger-Mutant Dominant Class ---------------- Mutant | -10/Materials Scavenger-Mutant | -10/Mines Mutant | -9/Materials Mutant | -8/Materials Resources | -11 -10 -10 -9 -8 ----------- Run | Yrd Mat Min Mat Mat Matter Collected 738 | 298 140 117 139 44 Remotely . | . . . . . Salvage Created 744 | 126 187 222 153 56 Parts 54 | 10 13 12 11 8 Haulers Intercepted . | . . . . . Recyclers Shooed 2 | 2 . . . . Parts Field Recycled . | . . . . . Retrieved Matter . | . . . . . Parts Self-Destructed . | . . . . . Prevented . | . . . . . Kills | -11 -10 -10 -9 -8 ------- Run | Yrd Mat Min Mat Mat Combat Hostiles Destroyed 15 | . 4 5 3 3 Guns 13 | . 4 5 3 1 AOE 2 | . . . . 2 Classes Destroyed 8 | 2 2 1 2 1 Worker 3 | . 1 . . 2 Tunneler 2 | 2 . . . . Recycler 1 | 1 . . . . Operator 1 | . . . 1 . Swarmer 3 | . . 3 . . Grunt 10 | . 4 2 2 2 Sentry 1 | . . . 1 . Demolisher 1 | . . . . 1 Best Kill Streak 3 | 3 2 3 3 3 Combat Bots Only 3 | . 2 3 2 2 Max Kills in Single Turn 1 | 1 1 1 1 1 Gunslinging . | . . . . . Exploded 1 | . . . . 1 Melee . | . . . . . Uniques/NPCs Destroyed . | . . . . . Combat | -11 -10 -10 -9 -8 -------- Run | Yrd Mat Min Mat Mat Hostile Shots Fired 176 | . 31 30 4 111 Missed 51 | . 13 6 2 30 Damage Taken 2392 | . 227 259 85 1821 Core 699 | . 58 61 18 562 Absorbed by Shields . | . . . . . Core Remaining (%) 82 | 100 . 52 95 . Volleys Fired 103 | 14 20 20 6 43 Largest 2 | 2 2 2 2 2 Hottest 70 | 40 40 40 70 70 Shots Fired 164 | 28 40 40 12 44 Gun 147 | 28 40 40 12 27 Cannon 7 | . . . . 7 Launcher 10 | . . . . 10 Special . | . . . . . Kinetic 136 | 28 40 40 7 21 Thermal 7 | . . . . 7 Explosive 10 | . . . . 10 Electromagnetic 11 | . . . 5 6 Robot Hit Streak 9 | 7 7 9 8 8 Robot Miss Streak 5 | 2 5 2 1 4 Penetration Max . | . . . . . Secondary Targets 2 | . 2 . . . Max Gunslinging Chain 1 | . 1 . . . Shots Hit Robots 101 | 17 25 26 7 26 Core Hits 48 | 7 10 11 5 15 Critical Kills . | . . . . . Critical Parts Destroyed . | . . . . . Critical Strikes . | . . . . . Melee Attacks . | . . . . . Impact . | . . . . . Slashing . | . . . . . Piercing . | . . . . . Sneak Attacks . | . . . . . Combat Hostiles . | . . . . . Follow-up Attacks . | . . . . . Damage Inflicted 1823 | 166 332 352 105 868 Guns 1263 | 166 332 351 105 309 Cannons 135 | . . . . 135 Explosions 388 | . . . . 388 Melee . | . . . . . Ramming 37 | . . 1 . 36 Kinetic 1085 | 166 332 351 24 212 Thermal 135 | . . . . 135 Explosive 388 | . . . . 388 Electromagnetic 178 | . . . 81 97 Impact . | . . . . . Slashing . | . . . . . Piercing . | . . . . . Highest Corruption 1 | . . . 1 1 Average Corruption 1 | . . . 1 1 Corruption Purged . | . . . . . Corruption Blocked . | . . . . . Effects 2 | . . . 1 1 Message Errors 1 | . . . . 1 Energy Discharges 1 | . . . 1 . Overload Shots . | . . . . . Overflow Damage 7 | . . . . 7 Projectiles . | . . . . . Explosions 7 | . . . . 7 Melee . | . . . . . Knockbacks 3 | . . . . 3 Impact 3 | . . . . 3 Kinetic . | . . . . . Secondary . | . . . . . Self-Inflicted Damage 64 | . . . . 64 Shots 2 | . . . . 2 Rammed 10 | . . . . 10 Targets Rammed 11 | . . 1 . 10 Kicked 1 | . . 1 . . Crushed . | . . . . . Highest Temperature 112 | . 5 9 21 112 Average Temperature 28 | . 2 3 11 43 Received Heat Transfer 768 | . 123 90 15 540 Siege Activations . | . . . . . Robots Corrupted . | . . . . . Combat Hostiles . | . . . . . Parts Fried . | . . . . . Impact Corruptions . | . . . . . Robots Melted . | . . . . . Combat Hostiles . | . . . . . Parts Melted . | . . . . . Heat Transferred 185 | . . . . 185 Parts Sabotaged . | . . . . . Parts Stolen . | . . . . . Parts Stripped . | . . . . . Power Chain Reactions . | . . . . . Alert | -11 -10 -10 -9 -8 ------- Run | Yrd Mat Min Mat Mat Peak Influence 160 | 15 129 109 147 160 Initial 61 | . 9 49 . 61 Average 60 | 7 71 69 23 101 Maximum Alert Level . | . . . . . Low Security (%) 100 | 100 100 100 100 100 Level 1 . | . . . . . Level 2 . | . . . . . Level 3 . | . . . . . Level 4 . | . . . . . Level 5 . | . . . . . High Security . | . . . . . Max Security . | . . . . . Squads Dispatched 7 | . 1 . 3 3 Investigation 1 | . . . 1 . Extermination . | . . . . . Reinforcement 4 | . 1 . 2 1 Assault . | . . . . . Garrison 2 | . . . . 2 Intercept . | . . . . . Searches Triggered . | . . . . . Construction Impeded . | . . . . . Haulers Reinforced . | . . . . . Active Scanning Responses . | . . . . . Cargo Convoy Interrupts . | . . . . . Stealth | -11 -10 -10 -9 -8 --------- Run | Yrd Mat Min Mat Mat Distress Signals 1 | . . . . 1 Communications Jammed . | . . . . . Distress Signals . | . . . . . Times Spotted 32 | . 5 6 5 16 Peak Tracking Total 10 | . 3 3 1 10 Tactical Retreats 2 | . . . . 2 Traps | -11 -10 -10 -9 -8 ------- Run | Yrd Mat Min Mat Mat Traps Triggered 2 | . . . 2 . Indirectly . | . . . . . Trap Hack Attempts . | . . . . . Triggered . | . . . . . Disarmed . | . . . . . Reprogrammed . | . . . . . Reused . | . . . . . Traps Extracted . | . . . . . Installed . | . . . . . Triggered . | . . . . . Machines | -11 -10 -10 -9 -8 ---------- Run | Yrd Mat Min Mat Mat Machines Disabled 2 | . . . 2 . Max in Single Turn 1 | . . . 1 . Machines Repaired . | . . . . . Machines Dismantled . | . . . . . Machines Sabotaged . | . . . . . Overloaded Fab Kills . | . . . . . Hacking | -11 -10 -10 -9 -8 --------- Run | Yrd Mat Min Mat Mat Machines Accessed 6 | . 2 . 2 2 Terminals 3 | . 1 . 1 1 Fabricators . | . . . . . Repair Stations . | . . . . . Recycling Units 3 | . 1 . 1 1 Scanalyzers . | . . . . . Garrison Access . | . . . . . Total Hacks 16 | . 6 . 4 6 Successful 7 | . 4 . 1 2 Failed 9 | . 2 . 3 4 Catastrophic 2 | . . . 1 1 Database Lockouts . | . . . . . Manual 3 | . . . . 3 Terminals 10 | . 5 . 2 3 Fabricators . | . . . . . Repair Stations . | . . . . . Recycling Units 6 | . 1 . 2 3 Scanalyzers . | . . . . . Garrison Access . | . . . . . Terminal Hacks 4 | . 3 . . 1 Record 1 | . 1 . . . Part Schematic 1 | . . . . 1 Branch Access Points 1 | . 1 . . . Hauler Manifests 1 | . 1 . . . Fabricator Hacks . | . . . . . Repair Station Hacks . | . . . . . Recycling Unit Hacks 3 | . 1 . 1 1 Retrieve Components 3 | . 1 . 1 1 Scanalyzer . | . . . . . Garrison Access Hacks . | . . . . . Unauthorized Hacks . | . . . . . Terminals . | . . . . . Fabricators . | . . . . . Repair Stations . | . . . . . Recycling Units . | . . . . . Scanalyzers . | . . . . . Garrison Access . | . . . . . Data Cores Recovered 1 | . . . . 1 Used 1 | . . . . 1 Hacking Detections 5 | . 2 . 1 2 Full Trace Events 1 | . . . 1 . Feedback Events . | . . . . . Feedback Blocked . | . . . . . Robot Schematics Acquired . | . . . . . Robots Built . | . . . . . Authchips . | . . . . . Time . | . . . . . Total Robot Build Rating . | . . . . . Part Schematics Acquired 1 | . . . . 1 Parts Built . | . . . . . Authchips . | . . . . . Time . | . . . . . Total Part Build Rating . | . . . . . Parts Repaired . | . . . . . Time . | . . . . . Parts Recycled . | . . . . . Recycled Matter . | . . . . . Retrieved Matter . | . . . . . Retrieved Components 7 | . 4 . 1 2 Parts Scanalyzed . | . . . . . Part Schematics Acquired . | . . . . . Parts Damaged . | . . . . . Bothacking | -11 -10 -10 -9 -8 ------------ Run | Yrd Mat Min Mat Mat Used RIF Installer . | . . . . . Robots Hacked . | . . . . . Non-combat . | . . . . . Combat . | . . . . . Robot Hacks Applied . | . . . . . Relay Couplers Released . | . . . . . Fabnet Peak Effective % . | . . . . . Robots Rewired . | . . . . . Allies Hacked . | . . . . . Hacks Repelled . | . . . . . Allies | -11 -10 -10 -9 -8 -------- Run | Yrd Mat Min Mat Mat Total Allies 3 | . . 3 . . Largest Group 3 | . . 3 3 2 Highest-Rated Group 40 | . . 40 40 32 Highest-Rated Ally 16 | . . 16 16 16 Total Orders . | . . . . . Ally Attacks 27 | . . . 1 26 Total Damage 335 | . . . 18 317 Kills 4 | . . . 1 3 Allies Corrupted . | . . . . . Allies Melted . | . . . . . Intel | -11 -10 -10 -9 -8 ------- Run | Yrd Mat Min Mat Mat Robot Analysis Total . | . . . . . Derelict Logs Recovered 2 | . . 2 . . Drone Launches . | . . . . . Drone Recoveries . | . . . . . Exploration | -11 -10 -10 -9 -8 ------------- Run | Yrd Mat Min Mat Mat Turns Passed 1796 | 182 229 852 299 234 Spaces Moved 1127 | 106 130 552 219 120 Core 4 | 3 . . . 1 Treads . | . . . . . Legs 824 | 103 130 552 39 . Wheels 299 | . . . 180 119 Hover . | . . . . . Flight . | . . . . . Fastest Speed 50 | 50 120 120 90 90 Average Speed 113 | 118 120 120 97 99 Slowest Speed 350 | 120 120 120 120 350 Overloaded Moves . | . . . . . Propulsion Burnouts . | . . . . . Robots Hopped . | . . . . . Cave-ins Triggered . | . . . . . Exploration Rate (%) 33 | 6 25 98 26 10 Regions Visited 4 Branch Regions 1 Pre-discovered Areas . | . . . . . Known Exits Taken 1 | . 1 . . . Unknown Exits Taken 3 | 1 . 1 1 . Scrap Searched 1 | . . 1 . . Spaces Dug 21 | . . . . 21 Terrain Destroyed 79 | . . . . 79 Melee . | . . . . . Projectile 2 | . . . . 2 AOE 77 | . . . . 77 Terrain Rammed . | . . . . . Walls Destroyed . | . . . . . Machines Disabled . | . . . . . Actions | -11 -10 -10 -9 -8 --------- Run | Yrd Mat Min Mat Mat Total 1500 | 140 168 704 295 193 Wait 168 | . 4 123 39 2 Move 1123 | 105 129 551 218 120 Hop . | . . . . . Pick Up 41 | 14 6 1 14 6 Fast Attach 4 | . . . 3 1 Attach 18 | 7 . . 4 7 Detach . | . . . . . Swap 9 | . 2 3 2 2 Drop 22 | . 7 4 9 2 Fire 103 | 14 20 20 6 43 Melee . | . . . . . Ram 10 | . . . . 10 Kick 1 | . . 1 . . Crush . | . . . . . Escape Stasis . | . . . . . Rewire 1 | . . 1 . . Trap . | . . . . . Miscellaneous . | . . . . . Route ------- -11/Scrapyard -10/Materials (discovered 2 exits: *Min x2) -10/Mines (discovered 2 exits: *Mat x2) -9/Materials -8/Materials (discovered 1 exit: Sto) History --------- Turn | Location | Event 5 | -11/Scrapyard | Discovered new exit (range 15) 183 | -11/Scrapyard | Entered Materials 308 | -10/Materials | Build established: Mutant 317 | -10/Materials | Discovered new exit (range 15) 319 | -10/Materials | Identified exit to Mines 412 | -10/Materials | Entered Mines 487 | -10/Mines | Met a Derelict bent on vengeance 680 | -10/Mines | Discovered new exit (range 5) 732 | -10/Mines | Build established: Scavenger-Mutant 861 | -10/Mines | Learned 2 Materials zone layouts 883 | -10/Mines | Discovered new exit (range 15) 1006 | -10/Mines | Assisted by bots powering up and referring to "LRC-V3" 1101 | -10/Mines | Received a Rocket Launcher from a helpful Derelict 1264 | -10/Mines | Entered Materials 1264 | -9/Materials | Accompanied by 3 allies 1264 | -9/Materials | Evolved 2 slots: Propulsion x2 1518 | -9/Materials | Discovered new exit (range 16) 1563 | -9/Materials | Entered another Materials area 1563 | -8/Materials | Accompanied by 2 allies 1563 | -8/Materials | Evolved 2 slots: Utility x2 1564 | -8/Materials | Identified exit to Storage 1618 | -8/Materials | Build established: Mutant 1681 | -8/Materials | Garrison activated, responded to threat 1719 | -8/Materials | Lost 5 parts (1p1n1u2w) 1763 | -8/Materials | Core integrity fell below 50% 1787 | -8/Materials | Core integrity fell below 20% 1792 | -8/Materials | Lost 8 parts (3n3u2w) 1797 | -8/Materials | Destroyed by G-47 Trooper with Particle Gun Last Messages --------------- 01755_ Acquired Minigun. 01759_ Arm. Wheel destroyed. 01761_ Imp. Sensor Array destroyed. 01762_ Slug penetrates Wall. 01763_ The unstable cave ceiling collapses. 01764_ D-53 Grenadier destroyed. 01765_ Penetrated by Slug. 01766_ The unstable cave ceiling collapses. 01769_ Penetrated by Slug. 01770_ The unstable cave ceiling collapses. 01770_ Destroyed Aluminum Leg. 01770_ G-47 Trooper destroyed. 01773_ Penetrated by Slug. 01774_ The unstable cave ceiling collapses. 01776_ Slug penetrates Door. 01777_ The unstable cave ceiling collapses. 01786_ Slug penetrates Earth. 01789_ Penetrated by Slug. 01792_ Minigun destroyed. 01795_ Slug penetrates G-47 Trooper. Map ----- +----------------------------------------------------+ | ??????????????????????????# # #?????????? | | ??????????????????????????#! # #?????????? | | ??????????????????????????# + #?????????? | | ??????????????????????????# ""# #?????????? | | ??????????????????????????# T"# #?????????? | | ??????????????????????????# ""#* #?????????? | | ??????????????????????????# # #?????????? | | ??????????????????????????###### #?????????? | | ??????????????????????????# # #?????????? | | ??????????????????????????# ! + #?????????? | | ??????????????????????????# # #?????????? | | ??????????????????????????# # ########### | | ??????????????????????????# + # # | | ??????????????????????????# # #""" # | | ??????????????????????????# # #"Y ! # | | ??????????????????????????# ?# #""" [""" # | | ??????????????????????????# ??# + """ # | | ??????????????????????????##???# % # ! """ # | | ?????????????????????########### # # | | ????????????????????## #%%%# # | | ????????????????????# #=% ########### | | ????????????????????# #%! #?????????? | | ??????????????????### #% =##????????? | | ??????????????????# # ;% ##???????? | | ??????????# #### = # ##??????? | | ????????? k a w h @ !%= #?????? | | ????????????????#### g !%g ##?????? | | ??????????????????# # # ##????? | | ??????????????????# # ## ## # #????? | | ??????????????????### ### # #????? | | ???????????????????# ###?### # #????? | | ???????????????????########### ## #????? | | ??????????????????????????# ## #????? | | ??????????????????????????# = #????? | | ??????????????????????????# #????? | | ??????????????????? #????? | | ??????????????????? = # #????? | | ?????????????????? = * ####????? | | ??????????????????? ####### ##???????? | | ?????????????????????????# # #####????????? | | ?????????????????????????# ##?????????????? | | ?????????????????????????# ???????????????? | | ?????????????????????????# ???????????????? | | ?????????????????????????# ????????????????? | | ?????????????????????????# ????????????????? | | ?????????????????????????# ????????????????? | | ?????????????????????????# ??????????????????? | | ?????????????????????????????????????????????? | | ?????????????????????????????????????????????? | | ?????????????????????????????????????????????? | +----------------------------------------------------+ Best States ------------- Heat Dissipation 31 Energy Generation 18 Energy Capacity 250 Matter Stores 300 Matter Capacity 300 Sight Range 16 Robot Scan Range 15 Terrain Scan Density 10 Armor Coverage 450 Evasion (%) 55 Item Schematics ----------------- Hacking Suite | -8/Materials | Hacked Robot Schematics ------------------ None Fabricated ------------ Nothing Alien Tech Used ----------------- None Achievements -------------- None Challenges ------------ None Game ------ Seed SeismicFocalPurifier Manual? 0 Play Time 00:20:29 Cumulative 13.0 hours Start 2024.04.11 @ 17:51:58 End 2024.04.11 @ 18:10:32 Sessions 1 Manual Loads 0 Difficulty Rogue Special Mode None Game No. 11 Rogue 11 Adventurer 0 Explorer 0 Win Type - Total 0 Types 0/0/0/0/0/0/0/0/0 Lore% 15 Gallery% 16 Achievement% 17 Wizard Run 0 Options --------- Layout 1 ASCII 0 Keyboard 0 Movement Numpad Keybinds 0 Fullscreen 1 Font 24/Terminus Map View 50x35 Zoom Use 0% Tactical HUD 1 Map Filters NONE Filters NONE Steam 0 RUN: 42102cce-51d7-46af-b63f-2c2efa875be0